Cogmind - Beta 13 X2 @@@ ROGUE MODE // 2024.01.05 @ 21:11:26 Player: Minty Result: Destroyed by IU-UC2(R) with Subdweller Machine Gun Performance ------------- Evolutions (0) 0 Regions Visited (2) 400 Robots Destroyed (8) 40 Value Destroyed (308) 308 Prototype IDs (2) 40 Alien Tech Used (0) 0 Bonus (0) 0 TOTAL SCORE: 788 Bonus ------- None Cogmind --------- Core Integrity 0/250 Matter 279/300 Energy 199/200 System Corruption 0% Temperature Cool (0) Movement Rolling (110) Location -10/Subcaves Parts ------- > --- POWER (1) -------- Subdweller Power Source > --- PROPULSION (2) --- Subdweller Monowheel > --- UTILITY (2) ------ Small Storage Unit > --- WEAPON (2) ------- Subdweller Machine Gun > --- INVENTORY (8) ---- Ion Engine Light Ion Engine Small Storage Unit Peak State ------------ > --- POWER ------------ Light Ion Engine > --- PROPULSION ------- Subdweller Monowheel > --- UTILITY ---------- Small Storage Unit Makeshift Light Armor Plating > --- WEAPON ----------- Medium Laser Small Laser > --- INVENTORY -------- Ion Engine Light Ion Engine Small Storage Unit EM Pulse Gun Enhanced Flamer [Rating: 10] Favorites ----------- Power Light Ion Engine Engine Light Ion Engine Propulsion Aluminum Leg Leg Aluminum Leg Wheel Subdweller Monowheel Utility Small Storage Unit Device Seismic Detector Storage Small Storage Unit Protection Makeshift Light Armor Plating Weapon Small Laser Energy Gun Small Laser Ballistic Gun Subdweller Machine Gun Special Weapon Mining Laser Build | -11 -10 -10 ------- Run | Yrd Mat Sub Slots Evolved . | . . . Power . | . . . Propulsion . | . . . Utility . | . . . Weapon . | . . . Parts Attached 15 | . 4 11 Power 2 | . 1 1 Engine 2 | . 1 1 Core . | . . . Reactor . | . . . Propulsion 2 | . . 2 Treads . | . . . Leg . | . . . Wheel 2 | . . 2 Hover . | . . . Flight . | . . . Utility 3 | . 1 2 Device 1 | . 1 . Storage 1 | . . 1 Processor . | . . . Hackware . | . . . Protection 1 | . . 1 Artifact . | . . . Weapon 8 | . 2 6 Energy Gun 4 | . 1 3 Energy Cannon . | . . . Ballistic Gun 1 | . . 1 Ballistic Cannon . | . . . Launcher . | . . . Special Weapon 3 | . 1 2 Impact Weapon . | . . . Slashing Weapon . | . . . Piercing Weapon . | . . . Special Melee Weapon . | . . . Unidentified Prototypes . | . . . Parts Lost 12 | . . 12 Power 1 | . . 1 Propulsion 3 | . . 3 Utility 2 | . . 2 Weapon 6 | . . 6 Highest Loss Streak 7 | . . 7 To Critical Strikes . | . . . Average Slot Usage (%) 85 | . 91 81 Engine 13 | . 14 13 Leg 18 | . 28 12 Wheel 1 | . . 2 Device 5 | . 6 4 Storage 13 | . 14 13 Protection 5 | . . 8 Energy Gun 20 | . 21 20 Special Weapon 5 | . 7 4 Naked Turns . | . . . Heaviest Build 16 | 12 12 16 Greatest Support 20 | 20 20 20 Greatest Overweight (x) 4 | . . 4 Average Overweight (x) . | . . . Largest Inventory Capacity 8 | . 8 8 Average Capacity 7 | . 8 7 Most Carried 6 | . 6 6 Average Carried 4 | . 3 5 Final Capacity 8 | 8 8 8 Final Carried 6 | 6 5 3 Class Distribution -------------------- 100% | Mutant Dominant Class ---------------- Mutant | -10/Materials Mutant | -10/Subcaves Resources | -11 -10 -10 ----------- Run | Yrd Mat Sub Matter Collected 290 | 200 . 90 Remotely . | . . . Salvage Created 259 | . 107 152 Parts 26 | . 7 19 Haulers Intercepted . | . . . Recyclers Shooed . | . . . Parts Field Recycled . | . . . Retrieved Matter . | . . . Parts Self-Destructed 9 | . . 9 Prevented . | . . . Kills | -11 -10 -10 ------- Run | Yrd Mat Sub Combat Hostiles Destroyed 7 | . 2 5 Guns 6 | . 1 5 AOE 1 | . 1 . Classes Destroyed 3 | . 2 1 Tunneler 1 | . 1 . Grunt 2 | . 2 . Subdweller 5 | . . 5 Best Kill Streak 2 | . 1 2 Combat Bots Only 2 | . 1 2 Max Kills in Single Turn 1 | . 1 1 Gunslinging . | . . . Exploded 1 | . 1 . Melee . | . . . Uniques/NPCs Destroyed . | . . . Combat | -11 -10 -10 -------- Run | Yrd Mat Sub Hostile Shots Fired 73 | . 15 58 Missed 19 | . 6 13 Damage Taken 1195 | . 183 1012 Core 257 | . 6 251 Absorbed by Shields . | . . . Core Remaining (%) 100 | 100 . . Volleys Fired 56 | . 30 26 Largest 2 | . 2 2 Hottest 200 | . 100 200 Shots Fired 78 | . 38 40 Gun 54 | . 22 32 Cannon . | . . . Launcher . | . . . Special 24 | . 16 8 Kinetic 3 | . . 3 Thermal 61 | . 28 33 Explosive . | . . . Electromagnetic 14 | . 10 4 Robot Hit Streak 4 | . 4 4 Robot Miss Streak 4 | . 4 2 Penetration Max . | . . . Secondary Targets 1 | . 1 . Max Gunslinging Chain 1 | . 1 . Shots Hit Robots 38 | . 12 26 Core Hits 16 | . 5 11 Critical Kills . | . . . Critical Parts Destroyed . | . . . Critical Strikes 2 | . 2 . Burn 2 | . 2 . Melee Attacks . | . . . Impact . | . . . Slashing . | . . . Piercing . | . . . Sneak Attacks . | . . . Combat Hostiles . | . . . Follow-up Attacks . | . . . Damage Inflicted 640 | . 250 390 Guns 413 | . 150 263 Cannons . | . . . Explosions 52 | . 52 . Melee . | . . . Ramming . | . . . Kinetic 46 | . . 46 Thermal 500 | . 190 310 Explosive . | . . . Electromagnetic 94 | . 60 34 Impact . | . . . Slashing . | . . . Piercing . | . . . Highest Corruption . | . . . Average Corruption . | . . . Corruption Purged . | . . . Corruption Blocked . | . . . Overload Shots . | . . . Overflow Damage . | . . . Projectiles . | . . . Explosions . | . . . Melee . | . . . Knockbacks . | . . . Impact . | . . . Kinetic . | . . . Secondary . | . . . Self-Inflicted Damage 50 | . 50 . Shots 2 | . 2 . Rammed . | . . . Targets Rammed . | . . . Kicked . | . . . Crushed . | . . . Highest Temperature 365 | . 306 365 Average Temperature 90 | . 75 173 Received Heat Transfer 715 | . 93 622 Effects 4 | . 3 1 Interference 4 | . 3 1 Siege Activations . | . . . Robots Corrupted . | . . . Combat Hostiles . | . . . Parts Fried . | . . . Impact Corruptions . | . . . Robots Melted . | . . . Combat Hostiles . | . . . Parts Melted . | . . . Heat Transferred 1407 | . 507 900 Parts Sabotaged . | . . . Parts Stolen . | . . . Parts Stripped . | . . . Power Chain Reactions 2 | . 2 . Missiles Intercepted . | . . . Alert | -11 -10 -10 ------- Run | Yrd Mat Sub Peak Influence 96 | . 96 . Initial . | . . . Average 74 | . 74 . Maximum Alert Level . | . . . Low Security (%) 100 | . 100 . Level 1 . | . . . Level 2 . | . . . Level 3 . | . . . Level 4 . | . . . Level 5 . | . . . High Security . | . . . Max Security . | . . . Squads Dispatched . | . . . Investigation . | . . . Extermination . | . . . Reinforcement . | . . . Assault . | . . . Garrison . | . . . Intercept . | . . . Searches Triggered . | . . . Construction Impeded . | . . . Haulers Reinforced . | . . . Active Scanning Responses . | . . . Cargo Convoy Interrupts . | . . . Stealth | -11 -10 -10 --------- Run | Yrd Mat Sub Distress Signals 1 | . 1 . Communications Jammed . | . . . Distress Signals . | . . . Times Spotted 9 | . 3 6 Peak Tracking Total 3 | . 3 3 Tactical Retreats . | . . . Traps | -11 -10 -10 ------- Run | Yrd Mat Sub Traps Triggered . | . . . Indirectly . | . . . Trap Hack Attempts . | . . . Triggered . | . . . Disarmed . | . . . Reprogrammed . | . . . Reused 1 | . . 1 Traps Extracted . | . . . Installed 1 | . . 1 Triggered . | . . . Most Traps Carried 1 | . . 1 Machines | -11 -10 -10 ---------- Run | Yrd Mat Sub Machines Disabled 2 | . 2 . Max in Single Turn 2 | . 2 . Machines Repaired . | . . . Machines Dismantled . | . . . Machines Sabotaged . | . . . Overloaded Fab Kills . | . . . Hacking | -11 -10 -10 --------- Run | Yrd Mat Sub Machines Accessed 2 | . 2 . Terminals 2 | . 2 . Fabricators . | . . . Repair Stations . | . . . Recycling Units . | . . . Scanalyzers . | . . . Garrison Access . | . . . Total Hacks 8 | . 8 . Successful 3 | . 3 . Failed 5 | . 5 . Catastrophic . | . . . Database Lockouts . | . . . Manual 2 | . 2 . Terminals 8 | . 8 . Fabricators . | . . . Repair Stations . | . . . Recycling Units . | . . . Scanalyzers . | . . . Garrison Access . | . . . Terminal Hacks 2 | . 2 . Prototype ID Bank 1 | . 1 . Locate Traps 1 | . 1 . Fabricator Hacks . | . . . Repair Station Hacks . | . . . Recycling Unit Hacks . | . . . Scanalyzer . | . . . Garrison Access Hacks . | . . . Unauthorized Hacks 1 | . 1 . Terminals 1 | . 1 . Botnet 1 | . 1 . Fabricators . | . . . Repair Stations . | . . . Recycling Units . | . . . Scanalyzers . | . . . Garrison Access . | . . . Data Cores Recovered . | . . . Used . | . . . Hacking Detections 2 | . 2 . Full Trace Events 2 | . 2 . Feedback Events . | . . . Feedback Blocked . | . . . Robot Schematics Acquired . | . . . Robots Built . | . . . Authchips . | . . . Time . | . . . Total Robot Build Rating . | . . . Part Schematics Acquired . | . . . Parts Built . | . . . Authchips . | . . . Time . | . . . Total Part Build Rating . | . . . Parts Repaired . | . . . Time . | . . . Parts Recycled . | . . . Recycled Matter . | . . . Retrieved Matter . | . . . Retrieved Components . | . . . Parts Scanalyzed . | . . . Part Schematics Acquired . | . . . Parts Damaged . | . . . Bothacking | -11 -10 -10 ------------ Run | Yrd Mat Sub Used RIF Installer . | . . . Robots Hacked . | . . . Non-combat . | . . . Combat . | . . . Robot Hacks Applied . | . . . Relay Couplers Released . | . . . Fabnet Peak Effective % . | . . . Robots Rewired . | . . . Allies Hacked . | . . . Hacks Repelled . | . . . Allies | -11 -10 -10 -------- Run | Yrd Mat Sub Total Allies . | . . . Largest Group . | . . . Highest-Rated Group . | . . . Highest-Rated Ally . | . . . Total Orders . | . . . Ally Attacks . | . . . Total Damage . | . . . Kills . | . . . Allies Corrupted . | . . . Allies Melted . | . . . Intel | -11 -10 -10 ------- Run | Yrd Mat Sub Robot Analysis Total . | . . . Derelict Logs Recovered 2 | . . 2 Drone Launches . | . . . Drone Recoveries . | . . . Exploration | -11 -10 -10 ------------- Run | Yrd Mat Sub Turns Passed 831 | . 321 510 Spaces Moved 435 | 1 158 276 Core 38 | . . 38 Treads . | . . . Legs 348 | 1 158 189 Wheels 49 | . . 49 Hover . | . . . Flight . | . . . Fastest Speed 100 | 120 120 100 Average Speed 138 | 120 120 149 Slowest Speed 250 | 120 120 250 Overloaded Moves . | . . . Propulsion Burnouts . | . . . Robots Hopped . | . . . Cave-ins Triggered . | . . . Exploration Rate (%) 13 | 2 23 16 Regions Visited 2 Branch Regions 1 Pre-discovered Areas 1 | . . 1 Known Exits Taken . | . . . Unknown Exits Taken 2 | 1 1 . Scrap Searched 3 | . . 3 Spaces Dug 1 | . 1 . Terrain Destroyed 6 | . 6 . Melee . | . . . Projectile 1 | . 1 . AOE 5 | . 5 . Terrain Rammed . | . . . Walls Destroyed . | . . . Machines Disabled . | . . . Actions | -11 -10 -10 --------- Run | Yrd Mat Sub Total 540 | . 220 320 Wait 22 | . 22 . Move 433 | . 157 276 Hop . | . . . Pick Up 5 | . 2 3 Fast Attach 7 | . 1 6 Attach 4 | . . 4 Detach 1 | . . 1 Swap 4 | . 3 1 Drop 7 | . 5 2 Fire 56 | . 30 26 Melee . | . . . Ram . | . . . Kick . | . . . Crush . | . . . Escape Stasis . | . . . Rewire . | . . . Trap 1 | . . 1 Miscellaneous . | . . . Route ------- -11/Scrapyard -10/Materials -10/Subcaves History --------- Turn | Location | Event 1 | -11/Scrapyard | Discovered new exit (range 0) 1 | -11/Scrapyard | Entered Materials 311 | -10/Materials | Build established: Mutant 319 | -10/Materials | Discovered new exit (range 2) 322 | -10/Materials | Entered Subcaves 350 | -10/Subcaves | Learned Materials garrison access intel 377 | -10/Subcaves | Learned location of Zion (-7) 515 | -10/Subcaves | Lost 4 parts (1n1u2w) 780 | -10/Subcaves | Core integrity fell below 50% 789 | -10/Subcaves | Core integrity fell below 20% 832 | -10/Subcaves | Destroyed by IU-UC2(R) with Subdweller Machine Gun Last Messages --------------- 00769_ Sub. Monowheel destroyed. 00771_ Med. Laser destroyed. 00777_ Critical hit (Meltdown: +270). 00781_ Overheating: System interference. 00781_ Sml. Laser temporarily disabled. 00785_ Lgt. Ion Engine destroyed. 00787_ Critical hit (Meltdown: +250). 00787_ ME-T71(R) destroyed. 00787_ Sml. Laser destroyed. 00789_ RA-UJ4(R) destroyed. 00790_ EM Pulse Gun destroyed. 00805_ Acquired Sub. Machine Gun. 00808_ Acquired Sub. Monowheel. 00810_ Dropped Sml. Storage Unit. 00812_ Acquired Sml. Storage Unit. 00816_ Acquired 30 matter. 00817_ Critical hit (Destroy). 00817_ Mak. Light Armor Plating destroyed. 00819_ Acquired Sub. Power Source. 00828_ Enh. Flamer destroyed. Map ----- +----------------------------------------------------+ | ?????????????????????????????????????????????????? | | ?????????????????????????????????????????????????? | | ?????????????????????????????????????????????????? | | ?????????????????????????????????????????????????? | | ?????????????????????????????????????????????????? | | ?????????????????????????????????????????????????? | | ?????????????????????????????????????????????????? | | ?????????????????????????????????????????????????? | | ?????????????????????????????????????????????????? | | ?????????????????????????????????????????????????? | | ?????????????????????????????????????????????????? | | ?????????????????????????????????????????????????? | | ?????????????????????????????????????????????????? | | #????????????????????????????????????????????????? | | ##??? ??????????????????????????????????????????? | | # # ?????????????????????????????????????????? | | #?????????????????????????????????????????? | | ??###?##?##??##???????????????????????????? | | ???? ? # ## ##"##??????????????????????????? | | ???## ? " "" ###????????????????????????? | | ???# ??? "" """ #????????????????????????? | | ???? #???????# """ #????????????????????????? | | #??## ????###### "" #????????????????????????? | | ##?# ###### #### "#########???????????????????? | | #??# ## ##" &&#### ##??????????????????? | | ##???# ?# " !"%& &@ ### ####??????????? | | ?????# ### """!%!& #?????????? | | ###### # """""!## R #????? | | # &&& "" "" ######## #??????? | | *!%&* " "" #??????? #??????? | | &&% ### #??????? ##??????? | | &&#?## # #???????### #???????? | | ## #??## # #????????? #??????? | | ## #??? ## #?????????? ??????? | | # #??# ## #??????????? ??????? | | #### ##??## #?###???????????### ??????? | | ???## ##???? ## #?????????????????? ???????? | | ????## ####??# # ##??????????????????? ???????? | | ###??# ##? ? #????????????????????????????? | | #??# #? ? ????????????????????????????? | | ##??## ##? ? ???????????????????????????? | | ###### #??## ?# ???????????????????????????? | | ## ## #???? ???????????????????????????????? | | ### #????# ???????????????????????????????? | | ### ##????? ????????????????????????????????? | | ##### ##????????????????????????????????? | | ## #?????????????????????????????????? | | ##### #?????????????????????????????????? | | #???# ##?????????????????????????????????? | | #???# ## #??????????????????????????????????? | +----------------------------------------------------+ Best States ------------- Heat Dissipation 25 Energy Generation 15 Energy Capacity 200 Matter Stores 300 Matter Capacity 300 Sight Range 16 Terrain Scan Density 10 Armor Coverage 100 Evasion (%) 55 Item Schematics ----------------- None Robot Schematics ------------------ None Fabricated ------------ Nothing Alien Tech Used ----------------- None Achievements -------------- None Challenges ------------ None Game ------ Seed ConcussiveBiocellInitializer Manual? 0 Play Time 00:05:57 Cumulative 569.2 hours Start 2024.01.05 @ 21:06:42 End 2024.01.05 @ 21:11:26 Sessions 1 Manual Loads 0 Difficulty Rogue Special Mode None Game No. 465 Rogue 192 Adventurer 123 Explorer 150 Win Type - Total 25 Types 19/0/4/1/0/0/0/1/0 Lore% 77 Gallery% 90 Achievement% 75 Wizard Run 0 Options --------- ASCII 0 Keyboard 1 Movement Numpad Keybinds 0 Fullscreen 2 Font 18/X11Bold Map View 76x50 Zoom Use 0% Tactical HUD 1 Map Filters NONE Filters NONE Steam 1 RUN: 71df7fda-492f-4b7d-a8e1-a03522455e83